Cogmind - Beta 15 @@@ ROGUE MODE // 2025.05.21 @ 13:38:23 Player: Lt.TNT Result: Destroyed by S-10 Pest with Light Assault Rifle Performance ------------- Evolutions (0) 0 Regions Visited (2) 400 Robots Destroyed (24) 120 Value Destroyed (523) 523 Prototype IDs (13) 260 Alien Tech Used (0) 0 Bonus (0) 0 TOTAL SCORE: 1303 Bonus ------- None Cogmind --------- Core Integrity 0/250 Matter 300/300 Energy 100/100 System Corruption 0% Temperature Cool (0) Movement Treading (240) Ox1 Location -10/Subcaves Parts ------- > --- POWER (1) -------- (None) > --- PROPULSION (2) --- Light Treads > --- UTILITY (2) ------ Large Storage Unit > --- WEAPON (2) ------- Light Assault Rifle > --- INVENTORY (15) --- Subdweller Power Source Light Treads High-capacity Storage Unit ECM Suite Power Bank Light Assault Rifle Battle Rifle Battle Rifle Light Cannon Battle Cannon Datajack Scrap Shield Fragment (45) Peak State ------------ > --- POWER ------------ Ion Engine > --- PROPULSION ------- Light Treads Light Treads > --- UTILITY ---------- Large Storage Unit Improved Terrain Scanner > --- WEAPON ----------- Light Assault Rifle Battle Cannon > --- INVENTORY -------- Ion Engine Light Treads Light Treads Light Treads Light Treads High-capacity Storage Unit ECM Suite Power Bank Light Assault Rifle Light Assault Rifle Light Assault Rifle Battle Rifle Light Cannon Datajack [Rating: 12] Favorites ----------- Power Ion Engine Engine Ion Engine Propulsion Light Treads Treads Light Treads Utility Improved Terrain Scanner Device Improved Terrain Scanner Storage Large Storage Unit Weapon Light Assault Rifle Energy Gun EM Pulse Gun Ballistic Gun Light Assault Rifle Ballistic Cannon Battle Cannon Special Melee Weapon Datajack Build | -11 -10 -10 ------- Run | Yrd Mat Sub Slots Evolved . | . . . Power . | . . . Propulsion . | . . . Utility . | . . . Weapon . | . . . Parts Attached 17 | 8 2 7 Power 2 | 1 . 1 Engine 2 | 1 . 1 Core . | . . . Reactor . | . . . Propulsion 5 | 2 . 3 Treads 5 | 2 . 3 Leg . | . . . Wheel . | . . . Hover . | . . . Flight . | . . . Utility 3 | 2 1 . Device 1 | 1 . . Storage 2 | 1 1 . Processor . | . . . Hackware . | . . . Protection . | . . . Artifact . | . . . Weapon 7 | 3 1 3 Energy Gun 1 | 1 . . Energy Cannon . | . . . Ballistic Gun 4 | 2 . 2 Ballistic Cannon 1 | . . 1 Launcher . | . . . Special Weapon . | . . . Impact Weapon . | . . . Slashing Weapon . | . . . Piercing Weapon . | . . . Special Melee Weapon 1 | . 1 . Unidentified Prototypes . | . . . Parts Lost 10 | . . 10 Power 2 | . . 2 Propulsion 4 | . . 4 Utility 1 | . . 1 Weapon 3 | . . 3 Highest Loss Streak 3 | . . 3 To Critical Strikes 1 | . . 1 Average Backups 9 | 2 9 12 Power 1 | 1 1 . Propulsion 2 | . 2 3 Utility 2 | . 1 2 Weapon 3 | . 2 5 Tool/Special . | . . . Unused Backups 11 | . 2 9 Power 2 | . 1 1 Propulsion 1 | . . 1 Utility 4 | . 1 3 Weapon 4 | . . 4 Tool/Special . | . . . Average Slot Usage (%) 99 | . 100 97 Engine 13 | . 14 12 Treads 27 | . 28 27 Device 14 | . 14 14 Storage 14 | . 14 14 Ballistic Gun 27 | . 27 25 Peak Build Rating 12 | 9 10 12 Average Rating 9 | 7 9 10 On Entrance 6 | . 9 10 Naked Turns . | . . . Heaviest Build 30 | 13 28 30 Greatest Support 40 | 40 40 40 Greatest Overweight (x) 2 | 2 . 1 Average Overweight (x) . | . . . Largest Inventory Capacity 15 | 8 15 15 Average Capacity 12 | 7 12 15 Most Carried 15 | 3 12 15 Average Carried 9 | 2 9 12 Final Capacity 15 | 8 15 15 Final Carried 12 | 3 12 12 Class Distribution -------------------- 97% | Mutant Dominant Class ---------------- Mutant | -10/Materials Mutant | -10/Subcaves Resources | -11 -10 -10 ----------- Run | Yrd Mat Sub Matter Collected 586 | 298 124 164 Remotely . | . . . Salvage Created 814 | 94 401 319 Parts 47 | 6 30 11 Haulers Intercepted 2 | . 2 . Recyclers Shooed . | . . . Parts Field Recycled . | . . . Retrieved Matter . | . . . Parts Self-Destructed 14 | . . 14 Prevented . | . . . Kills | -11 -10 -10 ------- Run | Yrd Mat Sub Combat Hostiles Destroyed 17 | . 10 7 Guns 17 | . 10 7 Classes Destroyed 9 | 2 5 2 Worker 1 | . 1 . Tunneler 2 | 2 . . Hauler 2 | . 2 . Recycler 1 | 1 . . Operator 1 | . 1 . Swarmer 6 | . 6 . Grunt 6 | . 4 2 Sentry 1 | . . 1 Subdweller 4 | . . 4 Best Kill Streak 4 | 1 4 3 Combat Bots Only 3 | . 3 3 Max Kills in Single Turn 1 | 1 1 1 Gunslinging . | . . . Exploded . | . . . Melee . | . . . Uniques/NPCs Destroyed . | . . . Combat | -11 -10 -10 -------- Run | Yrd Mat Sub Hostile Shots Fired 160 | . 45 115 Missed 50 | . 10 40 Hits 110 | . 35 75 Projectile 110 | . 35 75 Critical Strikes 4 | . 2 2 Damage Taken 1426 | . 388 1038 Core 254 | . 48 206 Absorbed by Shields . | . . . Core Remaining (%) 100 | 100 . . Volleys Fired 103 | 10 51 42 Largest 2 | 2 2 2 Hottest 40 | 40 40 40 Shots Fired 201 | 20 102 79 Gun 196 | 20 102 74 Cannon 5 | . . 5 Launcher . | . . . Special . | . . . Kinetic 201 | 20 102 79 Thermal . | . . . Explosive . | . . . Electromagnetic . | . . . Robot Hit Streak 18 | 6 12 18 Robot Miss Streak 4 | 2 4 2 Penetration Max . | . . . Secondary Targets 1 | . . 1 Max Gunslinging Chain 1 | . . 1 Shots Hit Robots 137 | 13 65 59 Core Hits 51 | 6 25 20 Critical Kills . | . . . Critical Parts Destroyed 1 | . 1 . Critical Strikes 1 | . 1 . Destroy 1 | . 1 . Melee Attacks . | . . . Impact . | . . . Slashing . | . . . Piercing . | . . . Sneak Attacks . | . . . Combat Hostiles . | . . . Follow-up Attacks . | . . . Damage Inflicted 1133 | 103 549 481 Guns 1103 | 103 519 481 Cannons . | . . . Explosions . | . . . Melee . | . . . Ramming 30 | . 30 . Kinetic 1103 | 103 519 481 Thermal . | . . . Explosive . | . . . Electromagnetic . | . . . Impact . | . . . Slashing . | . . . Piercing . | . . . Highest Corruption . | . . . Average Corruption . | . . . Corruption Purged . | . . . Corruption Blocked . | . . . Overload Shots . | . . . Overflow Damage . | . . . Projectiles . | . . . Explosions . | . . . Melee . | . . . Knockbacks . | . . . Impact . | . . . Kinetic . | . . . Secondary . | . . . Self-Inflicted Damage . | . . . Shots . | . . . Rammed 6 | . 6 . Targets Rammed 6 | . 6 . Kicked . | . . . Crushed . | . . . Highest Temperature 43 | . 43 . Average Temperature 19 | . 19 . Received Heat Transfer 519 | . 168 351 Siege Activations . | . . . Martial Activations . | . . . Shielding Activations . | . . . Robots Disrupted . | . . . Combat Hostiles . | . . . Robots Corrupted . | . . . Combat Hostiles . | . . . Parts Fried . | . . . Impact Corruptions . | . . . Robots Melted . | . . . Combat Hostiles . | . . . Parts Melted . | . . . Heat Transferred . | . . . Parts Sabotaged . | . . . Parts Stolen . | . . . Parts Stripped . | . . . Power Chain Reactions . | . . . Alert | -11 -10 -10 ------- Run | Yrd Mat Sub Maximum Alert Level . | . . . Low Security (%) 100 | 100 100 . Level 1 . | . . . Level 2 . | . . . Level 3 . | . . . Level 4 . | . . . Level 5 . | . . . High Security . | . . . Max Security . | . . . Peak Influence 96 | 5 96 . Initial . | . . . Average 22 | . 24 . Influence Increases 397 | 15 322 60 Destroy 0b10 Robot/C 260 | . 200 60 Destroy 0b10 Robot/NC 35 | 15 20 . Destroy Leader 44 | . 44 . Successful Hack 43 | . 43 . Lose Combat Pursuer 15 | . 15 . Influence Decreases 397 | 15 322 60 Time Decay 385 | 15 322 48 Lost Part 12 | . . 12 Squads Dispatched 2 | . 2 . Investigation 1 | . 1 . Extermination . | . . . Reinforcement 1 | . 1 . Assault . | . . . Garrison . | . . . Intercept . | . . . Searches Triggered . | . . . Construction Impeded . | . . . Haulers Reinforced . | . . . Active Scanning Responses . | . . . Cargo Convoy Interrupts . | . . . Stealth | -11 -10 -10 --------- Run | Yrd Mat Sub Distress Signals . | . . . Communications Jammed . | . . . Distress Signals . | . . . Times Spotted 32 | . 19 13 Peak Tracking Total 6 | . 4 6 Tactical Retreats 1 | . 1 . Traps | -11 -10 -10 ------- Run | Yrd Mat Sub Traps Triggered 4 | . 1 3 Indirectly . | . . . Trap Hack Attempts 1 | . 1 . Triggered . | . . . Disarmed 1 | . 1 . Reprogrammed . | . . . Reused . | . . . Traps Extracted . | . . . Installed . | . . . Triggered . | . . . Machines | -11 -10 -10 ---------- Run | Yrd Mat Sub Machines Disabled 1 | . . 1 Max in Single Turn 1 | . . 1 Machines Repaired . | . . . Machines Dismantled . | . . . Machines Sabotaged . | . . . Overloaded Fab Kills . | . . . Hacking | -11 -10 -10 --------- Run | Yrd Mat Sub Machines Accessed 7 | . 6 1 Terminals 6 | . 6 . Fabricators . | . . . Repair Stations . | . . . Recycling Units . | . . . Scanalyzers . | . . . Garrison Access . | . . . Total Hacks 26 | . 17 9 Successful 21 | . 12 9 Failed 5 | . 5 . Catastrophic . | . . . Database Lockouts . | . . . Manual 14 | . 14 . Terminals 17 | . 17 . Fabricators . | . . . Repair Stations . | . . . Recycling Units . | . . . Scanalyzers . | . . . Garrison Access . | . . . Terminal Hacks 13 | . 4 9 Record 8 | . . 8 Robot Analysis 1 | . 1 . Prototype ID Bank 1 | . 1 . Locate Traps 1 | . 1 . Zone Layout 1 | . 1 . Proto ID Catalog 1 | . . 1 Fabricator Hacks . | . . . Repair Station Hacks . | . . . Recycling Unit Hacks . | . . . Scanalyzer . | . . . Garrison Access Hacks . | . . . Unauthorized Hacks 8 | . 8 . Terminals 8 | . 8 . Botnet 2 | . 2 . Operators 1 | . 1 . Skim 5 | . 5 . Fabricators . | . . . Repair Stations . | . . . Recycling Units . | . . . Scanalyzers . | . . . Garrison Access . | . . . Data Cores Recovered . | . . . Used . | . . . Hacking Detections 6 | . 6 . Full Trace Events . | . . . Feedback Events . | . . . Feedback Blocked . | . . . Robot Schematics Acquired . | . . . Robots Built . | . . . Authchips . | . . . Time . | . . . Total Robot Build Rating . | . . . Part Schematics Acquired . | . . . Parts Built . | . . . Authchips . | . . . Time . | . . . Total Part Build Rating . | . . . Parts Repaired . | . . . Time . | . . . Parts Recycled . | . . . Recycled Matter . | . . . Retrieved Matter . | . . . Retrieved Components . | . . . Parts Scanalyzed . | . . . Part Schematics Acquired . | . . . Parts Damaged . | . . . Bothacking | -11 -10 -10 ------------ Run | Yrd Mat Sub Used RIF Installer . | . . . Robots Hacked . | . . . Non-combat . | . . . Combat . | . . . Robot Hacks Applied . | . . . Relay Couplers Released . | . . . Fabnet Peak Effective % . | . . . Robots Rewired . | . . . Allies Hacked . | . . . Hacks Repelled . | . . . Allies | -11 -10 -10 -------- Run | Yrd Mat Sub Total Allies . | . . . Largest Group . | . . . Highest-Rated Group . | . . . Highest-Rated Ally . | . . . Total Orders . | . . . Ally Attacks . | . . . Total Damage . | . . . Kills . | . . . Allies Corrupted . | . . . Allies Melted . | . . . Intel | -11 -10 -10 ------- Run | Yrd Mat Sub Active Infowar (turns) 2114 | 86 1344 684 Terrain 2114 | 86 1344 684 Robot Analysis Total 1 | . 1 . Derelict Logs Recovered . | . . . Drone Launches . | . . . Drone Recoveries . | . . . Exploration | -11 -10 -10 ------------- Run | Yrd Mat Sub Turns Passed 2193 | 163 1344 686 Spaces Moved 1016 | 82 609 325 Core 11 | 11 . . Treads 1005 | 71 609 325 Legs . | . . . Wheels . | . . . Hover . | . . . Flight . | . . . Fastest Speed 50 | 50 160 160 Average Speed 159 | 150 160 160 Slowest Speed 240 | 160 160 240 Overloaded Moves . | . . . Propulsion Burnouts . | . . . Robots Hopped . | . . . Potential Cave-ins . | . . . Cave-ins Triggered . | . . . Exploration Rate (%) 39 | 5 91 22 Regions Visited 2 Branch Regions 1 Pre-discovered Areas 3 | . 3 . Known Exits Taken . | . . . Unknown Exits Taken 2 | 1 1 . Scrap Searched 3 | . . 3 Spaces Dug . | . . . Terrain Destroyed . | . . . Melee . | . . . Projectile . | . . . AOE . | . . . Terrain Rammed . | . . . Walls Destroyed . | . . . Machines Disabled . | . . . Actions | -11 -10 -10 --------- Run | Yrd Mat Sub Total 1416 | 102 895 419 Wait 246 | . 210 36 Move 1014 | 81 608 325 Hop . | . . . Pick Up 20 | 2 12 6 Fast Attach 8 | 8 . . Attach 6 | . . 6 Detach 1 | 1 . . Swap 7 | . 3 4 Drop 4 | . 4 . Fire 103 | 10 51 42 Melee . | . . . Ram . | . . . Kick . | . . . Crush 6 | . 6 . Escape Stasis . | . . . Rewire . | . . . Trap 1 | . 1 . Miscellaneous . | . . . Route ------- -11/Scrapyard -10/Materials (discovered 6 exits: [*Mat x3] / [*Min x2] / *Sub) -10/Subcaves (discovered 3 exits: Mat x2 / [*Rec]) History --------- Turn | Location | Event 10 | -11/Scrapyard | Discovered new exit (range 15) 164 | -11/Scrapyard | Entered Materials 317 | -10/Materials | Build established: Mutant 484 | -10/Materials | Discovered new exit (range 13) 503 | -10/Materials | Discovered new exit (range 12) 690 | -10/Materials | Discovered new exit (range 7) 781 | -10/Materials | Discovered new exit (range 12) 921 | -10/Materials | Discovered new exit (range 15) 1190 | -10/Materials | Learned location of Mines (-10) 1238 | -10/Materials | Learned 2 Storage zone layouts 1303 | -10/Materials | Learned Storage trap positions 1322 | -10/Materials | Learned location of 1 exit from Storage 1331 | -10/Materials | Learned 4 Subcaves zone layouts 1340 | -10/Materials | Learned Storage emergency access door positions 1360 | -10/Materials | Learned location of Recycling (-9) 1390 | -10/Materials | Learned Recycling recycling unit intel 1496 | -10/Materials | Discovered new exit (range 9) 1508 | -10/Materials | Entered Subcaves 1509 | -10/Subcaves | Identified exit to Materials 1557 | -10/Subcaves | A swath of the cavern ceiling suddenly collapsed 1677 | -10/Subcaves | Visited 4L-MR0's lab 1730 | -10/Subcaves | Found Power Bank 2060 | -10/Subcaves | Ambushed by Subdwellers from Twisted Machinery 2090 | -10/Subcaves | Core integrity fell below 50% 2152 | -10/Subcaves | Lost 3 parts (1p1n1w) 2154 | -10/Subcaves | Core integrity fell below 20% 2178 | -10/Subcaves | Discovered new exit (range 11) 2194 | -10/Subcaves | Destroyed by S-10 Pest with Light Assault Rifle Last Messages --------------- 02155_ Subatomizers dissect the Sub. Monowheel. 02160_ Triggered Piercing Trap. 02160_ Spikes shoot up from the floor. 02160_ Critical hit (Impale). 02163_ Triggered Piercing Trap. 02163_ Spikes shoot up from the floor. 02163_ Critical hit (Impale). 02178_ EXIT=FOUND 02179_ S-10 Pest springs to life. 02180_ S-10 Pest destroyed. 02186_ Lgt. Treads destroyed. 02188_ Lgt. Ion Engine fries itself beyond repair. 02188_ Flight Unit fries itself beyond repair. 02188_ Lgt. Assault Rifle destroyed. 02190_ Lgt. Ion Engine fries itself beyond repair. 02191_ Flight Unit fries itself beyond repair. 02192_ Imp. Terrain Scanner destroyed. 02193_ Flight Unit fries itself beyond repair. Map ----- +----------------------------------------------------+ | ?????????????????????????????????????????????????? | | ?#???????????????????????????????????????????????? | | ?????????????????????????????????????????????????? | | ?????????????????????????????????????????????????? | | ?????????????????????????????????????????????????? | | ??#?#????????????????????????????????????????????? | | ?????????????????????????????????????????????????? | | ?#???????????????????????????????????????????????? | | #????????????????????????????????????????????????? | | ?#???????????????????????????????????????????????? | | ??#??????????????????????????????????????????????? | | ?????????????????????????????????????????????????? | | ????????#?????? #???????????????????????????????? | | ???????#??????# #???????#???????????????????????? | | ?????#??????## #?????#?????????????????????????? | | ???????#????# #???????????????????????????????? | | ??##???????? #???????????????????????????????? | | ?????????#?? #???????????????????????????????? | | #???????##??# ???????????????????????????????? | | ????#???????? #????????????#??????????????????? | | ??#?######?? ?##?????????????????????????????? | | ???## ##?? #????????????????????????????????? | | #### #### #????#??###??????????????????????? | | ## ^## ##??#####<#####??????????????????? | | ## ## #??#"""" """"#??????????????????? | | != #??#" "@" "#??????????????????? | | =^%%[ #?##" t t "#??????????????????? | | # ! ###### ##??# #??#???????????????? | | ## ###?#?# ###?# #??????????????????? | | ### #????## ###" = "#????#?????????????? | | ## ###### ####% s####????#?????????????? | | ### ### ##= #### """?????????????? | | ### ##?# # "" "?????????????? | | ####??# ### """#??????????????? | | ##?????# #?# """"""""""""#??????????????? | | ???????# #?# ""##" "??????????????? | | ??#????# #?## "###" ## ??????????????? | | ???????## ##??## ####?#####? ## ?????????????? | | ???##??#####????#####???????????#??#?????????????? | | ???????????#?????????????????????????????????????? | | ?????????#???????????????????????????????????????? | | #???????????#??????#?????????#???????????????????? | | ??????#??????????????????????????????????????????? | | ?????????????????????????????????????????????????? | | ?????????????????????????????????????????????????? | | ?????????????????????????????????????????????????? | | ?????????????????????????????????????????????????? | | ?????????????????????????????????????????????????? | | ?????????????????????????????????????????????????? | | ?????????????????????????????????????????????????? | +----------------------------------------------------+ Best States ------------- Heat Dissipation 25 Energy Generation 10 Energy Capacity 250 Matter Stores 300 Matter Capacity 300 Sight Range 16 Terrain Scan Range 16 Terrain Scan Density 10 Evasion (%) 40 Recoil Reduction 2 Item Schematics ----------------- None Robot Schematics ------------------ None Fabricated ------------ Nothing Repaired ---------- Nothing Alien Tech Used ----------------- None Achievements -------------- None Challenges ------------ None Game ------ Seed ReactiveAuthchipSpecial Manual? 0 Play Time 00:20:23 Cumulative 86.1 hours Start 2025.05.21 @ 05:56:19 End 2025.05.21 @ 13:38:23 Sessions 1 Manual Loads 0 Difficulty Rogue Special Mode None Game No. 161 Rogue 161 Adventurer 0 Explorer 0 Win Type - Total 3 Types 3/0/0/0/0/0/0/0/0/0 Lore% 53 Gallery% 35 Achievement% 38 Wizard Run 0 Options --------- Layout 1 ASCII 0 Keyboard 0 Movement Numpad Keybinds 0 Fullscreen 1 Font 32/SmallcapsGlow Map View 50x35 Zoom Use 0% Tactical HUD 1 Map Filters NONE Filters NONE Steam 1 RUN: f24da23d-5bc1-482f-ad15-821b3e41889b